{"text_format":"1","workbook":"xlsx","n_sheets":2,"sheets":["Statistik","Auswertung"],"not_rendered":{"charts":10,"images":0,"macros":1,"external_links":0,"defined_names":4,"comments":0,"pivot_tables":0},"unopened":[],"bounds":{"document_bytes":16777216,"sheet_cells":100000,"rows_first":2000,"rows_last":500,"rows_between":2000,"halvings":0,"cell_chars":16384,"cell_head_chars":4096},"cells_cut":0,"cells_raw":0,"read":"whole","date_system":"1900"}

{"sheet":"Statistik","index":0,"n_rows":111,"n_cols":35,"rows_kept":111,"cut":false,"hidden":false,"merged":[[28,14,28,17],[28,18,28,21],[28,22,28,25],[28,26,28,30],[18,6,18,9],[28,6,28,9],[18,22,18,25],[18,10,18,13],[55,2,55,3],[55,4,55,5],[0,2,0,5],[1,2,1,5],[38,1,38,17],[45,2,54,33],[27,2,27,30],[17,32,17,33],[27,32,27,33],[28,2,28,5],[28,10,28,13],[18,18,18,21],[18,14,18,17],[18,2,18,5],[17,2,17,30],[18,26,18,30]]}
[null,"Förderwerber*in",null,null,null,null,null,null,null,null,null,null,null,null,null,null,null,null,null,null,null,null,null,null,null,null,null,null,null,null,null,null,null,{"$f":"\"Gesamt Teilnehmer*innen je Geschlecht im Förderjahr \"&C2","v":"Gesamt Teilnehmer*innen je Geschlecht im Förderjahr 2023"}]
[null,"Förderjahr",2023,null,null,null,null,null,null,null,null,null,null,null,null,null,null,null,null,null,null,null,null,null,null,null,null,null,null,null,null,null,null,"Vergleich Gesamt PLAN / IST Teilnehmer*innen"]
[]
[null,"ORGANISATION"]
[null,{"$f":"\"Anzahl der Mitglieder im Vorstand/in der Geschäftsführung \"&C2","v":"Anzahl der Mitglieder im Vorstand/in der Geschäftsführung 2023"}]
[null,"  weiblich"]
[null,"  männlich"]
[null,"  divers"]
[null,"  k.A."]
[null,{"$f":"\"Anzahl der Mitarbeiter*innen mit einem Dienstvertrag (befristet, unbefristet, freier DV ) gesamt \"&C2","v":"Anzahl der Mitarbeiter*innen mit einem Dienstvertrag (befristet, unbefristet, freier DV ) gesamt 2023"}]
[]
[null,"VORHABEN"]
[null,{"$f":"\"Anzahl der Standorte \"&C2","v":"Anzahl der Standorte 2023"}]
[null,{"$f":"\"Anzahl der Kurse/Veranstaltungen/Vorträge/Workshops \"&C2","v":"Anzahl der Kurse/Veranstaltungen/Vorträge/Workshops 2023"}]
[null,"Anzahl der Konsument*innen (z.B. Hörer*innen, Abonnent*innen)"]
[null,{"$f":"\"Anzahl der Medienwerke (print oder digital, unabhängig von den Auflagen) \"&C2","v":"Anzahl der Medienwerke (print oder digital, unabhängig von den Auflagen) 2023"}]
[]
[null,null,{"$f":"\"Förderjahr \"&C2","v":"Förderjahr 2023"},null,null,null,null,null,null,null,null,null,null,null,null,null,null,null,null,null,null,null,null,null,null,null,null,null,null,null,null,{"$f":"\"Förderjahr \" &C2-1","v":"Förderjahr 2022"},{"$f":"\"Vergleich Förderjahr \"&C2&\" mit \"&C2-1","v":"Vergleich Förderjahr 2023 mit 2022"}]
[null,null,"0 - 10 Jahre",null,null,null,"11 - 14 Jahre",null,null,null,"15 - 24 Jahre",null,null,null,"25 - 44 Jahre",null,null,null,"45 - 64 Jahre",null,null,null,"über 65 Jahre",null,null,null,"Gesamt",null,null,null,null,"Teilnehmer*innen"]
[null,"Teilnehmer*innen nach Aktivitäten (z.B. Unterricht, Kurse, Veranstaltungen, Vorträge, Workshops)","männlich","weiblich","divers","k.A.","männlich","weiblich","divers","k.A.","männlich","weiblich","divers","k.A.","männlich","weiblich","divers","k.A.","männlich","weiblich","divers","k.A.","männlich","weiblich","divers","k.A.","männlich","weiblich","divers","k.A.","Gesamt","Gesamt","Differenz in %","Begründung wenn Abweichung gegenüber PLAN mehr als 20% ist"]
[1,null,null,null,null,null,null,null,null,null,null,null,null,null,null,null,null,null,null,null,null,null,null,null,null,null,{"$f":"C21+G21+K21+O21+S21+W21","v":0},{"$f":"D21+H21+L21+P21+T21+X21","v":0},{"$f":"E21+I21+M21+Q21+U21+Y21","v":0},{"$f":"F21+J21+N21+R21+V21+Z21","v":0},{"$f":"SUM(AA21:AD21)","v":0},null,{"$f":"IF(OR(AF21=0, AE21=0),\"-\",AE21/AF21*100-100)","v":"-"},null,{"$f":"IF(AND(OR(AG21>=20,AG21<=-20),AG21<>\"-\"),IF(ISBLANK(AH21),$C$111,\"\"),\"\")","v":""}]
[2,null,null,null,null,null,null,null,null,null,null,null,null,null,null,null,null,null,null,null,null,null,null,null,null,null,{"$f":"C22+G22+K22+O22+S22+W22","v":0},0,0,{"$f":"F22+J22+N22+R22+V22+Z22","v":0},{"$f":"SUM(AA22:AD22)","v":0},null,{"$f":"IF(OR(AF22=0, AE22=0),\"-\",AE22/AF22*100-100)","v":"-"},null,{"$f":"IF(AND(OR(AG22>=20,AG22<=-20),AG22<>\"-\"),IF(ISBLANK(AH22),$C$111,\"\"),\"\")","v":""}]
[3,null,null,null,null,null,null,null,null,null,null,null,null,null,null,null,null,null,null,null,null,null,null,null,null,null,0,0,0,0,{"$f":"SUM(AA23:AD23)","v":0},null,"-",null,{"$f":"IF(AND(OR(AG23>=20,AG23<=-20),AG23<>\"-\"),IF(ISBLANK(AH23),$C$111,\"\"),\"\")","v":""}]
[4,null,null,null,null,null,null,null,null,null,null,null,null,null,null,null,null,null,null,null,null,null,null,null,null,null,0,0,0,0,{"$f":"SUM(AA24:AD24)","v":0},null,"-",null,{"$f":"IF(AND(OR(AG24>=20,AG24<=-20),AG24<>\"-\"),IF(ISBLANK(AH24),$C$111,\"\"),\"\")","v":""}]
[5,null,null,null,null,null,null,null,null,null,null,null,null,null,null,null,null,null,null,null,null,null,null,null,null,null,0,0,0,0,{"$f":"SUM(AA25:AD25)","v":0},null,"-",null,{"$f":"IF(AND(OR(AG25>=20,AG25<=-20),AG25<>\"-\"),IF(ISBLANK(AH25),$C$111,\"\"),\"\")","v":""}]
[null,"SUMME",{"$f":"SUM(C21:C25)","v":0},{"$f":"SUM(D21:D25)","v":0},{"$f":"SUM(E21:E25)","v":0},{"$f":"SUM(F21:F25)","v":0},{"$f":"SUM(G21:G25)","v":0},{"$f":"SUM(H21:H25)","v":0},{"$f":"SUM(I21:I25)","v":0},{"$f":"SUM(J21:J25)","v":0},{"$f":"SUM(K21:K25)","v":0},{"$f":"SUM(L21:L25)","v":0},{"$f":"SUM(M21:M25)","v":0},{"$f":"SUM(N21:N25)","v":0},{"$f":"SUM(O21:O25)","v":0},{"$f":"SUM(P21:P25)","v":0},{"$f":"SUM(Q21:Q25)","v":0},{"$f":"SUM(R21:R25)","v":0},{"$f":"SUM(S21:S25)","v":0},{"$f":"SUM(T21:T25)","v":0},{"$f":"SUM(U21:U25)","v":0},{"$f":"SUM(V21:V25)","v":0},{"$f":"SUM(W21:W25)","v":0},{"$f":"SUM(X21:X25)","v":0},{"$f":"SUM(Y21:Y25)","v":0},{"$f":"SUM(Z21:Z25)","v":0},{"$f":"SUM(AA21:AA25)","v":0},{"$f":"SUM(AB21:AB25)","v":0},{"$f":"SUM(AC21:AC25)","v":0},{"$f":"SUM(AD21:AD25)","v":0},{"$f":"SUM(AE21:AE25)","v":0},{"$f":"SUM(AF21:AF25)","v":0}]
[]
[null,null,{"$f":"\"Förderjahr \"&C2","v":"Förderjahr 2023"},null,null,null,null,null,null,null,null,null,null,null,null,null,null,null,null,null,null,null,null,null,null,null,null,null,null,null,null,{"$f":"\"Förderjahr \" &C2-1","v":"Förderjahr 2022"},{"$f":"\"Vergleich Förderjahr \"&C2&\" mit \"&C2-1","v":"Vergleich Förderjahr 2023 mit 2022"}]
[null,null,"0 - 10 Jahre",null,null,null,"11 - 14 Jahre",null,null,null,"15 - 24 Jahre",null,null,null,"25 - 44 Jahre",null,null,null,"45 - 64 Jahre",null,null,null,"über 65 Jahre",null,null,null,"Gesamt",null,null,null,null,"Teilnahmen"]
[null,"Teilnahmen nach Aktivitäten (z.B. Unterricht, Kurse, Veranstaltungen, Vorträge, Workshops)","männlich","weiblich","divers","k.A.","männlich","weiblich","divers","k.A.","männlich","weiblich","divers","k.A.","männlich","weiblich","divers","k.A.","männlich","weiblich","divers","k.A.","männlich","weiblich","divers","k.A.","männlich","weiblich","divers","k.A.","Gesamt","Gesamt","Differenz in %","Begründung wenn Abweichung gegenüber PLAN mehr als 20% ist"]
[1,null,null,null,null,null,null,null,null,null,null,null,null,null,null,null,null,null,null,null,null,null,null,null,null,null,{"$f":"C31+G31+K31+O31+S31+W31","v":0},0,0,{"$f":"F31+J31+N31+R31+V31+Z31","v":0},{"$f":"SUM(AA31:AD31)","v":0},null,{"$f":"IF(OR(AF31=0, AE31=0),\"-\",AE31/AF31*100-100)","v":"-"},null,{"$f":"IF(AND(OR(AG31>=20,AG31<=-20),AG31<>\"-\"),IF(ISBLANK(AH31),$C$111,\"\"),\"\")","v":""}]
[2,null,null,null,null,null,null,null,null,null,null,null,null,null,null,null,null,null,null,null,null,null,null,null,null,null,0,0,0,0,{"$f":"SUM(AA32:AD32)","v":0},null,{"$f":"IF(OR(AF32=0, AE32=0),\"-\",AE32/AF32*100-100)","v":"-"},null,{"$f":"IF(AND(OR(AG32>=20,AG32<=-20),AG32<>\"-\"),IF(ISBLANK(AH32),$C$111,\"\"),\"\")","v":""}]
[3,null,null,null,null,null,null,null,null,null,null,null,null,null,null,null,null,null,null,null,null,null,null,null,null,null,0,0,0,0,{"$f":"SUM(AA33:AD33)","v":0},null,"-",null,""]
[4,null,null,null,null,null,null,null,null,null,null,null,null,null,null,null,null,null,null,null,null,null,null,null,null,null,0,0,0,0,{"$f":"SUM(AA34:AD34)","v":0},null,"-",null,""]
[5,null,null,null,null,null,null,null,null,null,null,null,null,null,null,null,null,null,null,null,null,null,null,null,null,null,0,0,0,0,{"$f":"SUM(AA35:AD35)","v":0},null,"-",null,""]
[null,"SUMME",{"$f":"SUM(C31:C35)","v":0},0,0,0,0,0,0,0,0,0,0,0,0,0,0,0,0,0,0,0,0,0,0,{"$f":"SUM(Z31:Z35)","v":0},{"$f":"SUM(AA31:AA35)","v":0},{"$f":"SUM(AB31:AB35)","v":0},0,0,0,{"$f":"SUM(AF31:AF35)","v":0}]
[]
[null,"Ausfüllhilfe"]
[null,"Unter Teilnehmer*innen werden die teilnehmenden Personen (\"Köpfe\") gemeint. Jede Person zählt pro Veranstaltung einmal. Demgegenüber werden unter Teilnahmen belegte Plätze gemeint. Darin sind auch Mehrfachbelegungen enthalten (z.B. bei einem sich über mehrere Wochen erstreckenden Angebot, wenn die Plätze pro Woche gezählt werden, die wiederum von denselben Personen belegt werden können). \nJe nach Zählmöglichkeit sind entweder die Teilnehmer*innen oder die Teilnahmen anzugeben.\nDie Anzahl der Teilnehmer*innen und Teilnahmen für jede einzelne Veranstaltung ist mit verhältnismäßigem Aufwand zu erheben. Im Falle von Großveranstaltungen und Vorträgen, bei welchen keine Anmeldung erforderlich ist, kann die Anzahl in den Gender- und Alterskategorien geschätzt werden.",null,null,null,null,null,null,null,null,null,null,null,null,null,null,null,null,null,null,null,null,1500,5,{"$f":"LEN(C46)","v":0},{"$f":"LEN(C46)-LEN(SUBSTITUTE(C46,CHAR(10),\"\"))+(LEN(C46)>1)","v":0}]
[null,"Button \"Zeile Aktivität hinzufügen\" - bei Klick auf diesen Button kann den Aktivitäten eine weitere Zeile hinzugefügt werden; Bei Klick auf das MINUS (-) wird eine Zeile gelöscht"]
[null,"Förderjahr 2022 (=Vorjahr) - Hier sind immer die Teilnehmer*innen bzw. die Teilnahmen des Vorjahres zu den jeweiligen Aktivitäten anzuführen. Sollte es sich um eine erstmalige Aktivität handeln, ist hier nichts zu befüllen. "]
[null,"Begründung - Wenn es zu einer Abweichung von über 20% zum Vorjahr kommt, ist hier eine Begründung anzuführen."]
[null,"Arbeitsmappe Auswertung - Befüllt sich automatisch und bezieht die Daten aus der Arbeitsmappe Statistik"]
[]
[null,null,"Anmerkungen",null,{"$f":"IF(Y39>W39,\"! Bitte überprüfen Sie ihre Eingabe; zuviele Zeichen !\",IF(Z26>X26,\"! Bitte überprüfen Sie ihre Eingabe; zuviele Zeilen !\",\"\"))","v":""},null,null,null,null,null,null,null,null,null,null,null,null,null,null,null,null,null,null,null,null,null,{"$f":"Y39&\"/\"&W39&\" Zeichen\"","v":"0/1500 Zeichen"},null,null,null,{"$f":"Z39&\"/\"&X39&\" Zeilen\"","v":"0/5 Zeilen"}]
[]
[]
[]
[]
[]
[]
[]
[]
[]
[]
[]
[]
[]
[]
[]
[]
[]
[]
[]
[]
[]
[]
[]
[]
[]
[]
[]
[]
[]
[]
[]
[]
[]
[]
[]
[]
[]
[]
[]
[]
[]
[]
[]
[]
[]
[]
[]
[]
[]
[]
[]
[]
[]
[]
[]
[]
[]
[]
[]
[]
[]
[]
[]
[]
[]
[null,null,"<- Bitte Begründung angeben"]

{"sheet":"Auswertung","index":1,"n_rows":39,"n_cols":20,"rows_kept":39,"cut":false,"hidden":false,"merged":[]}
[null,null,null,null,null,null,null,null,null,null,null,null,null,null,"Gewünschte Torten- oder Balkendiagramme:"]
[]
[null,null,null,null,null,null,null,null,null,null,null,null,null,null,"1. ","Geschlechtsverteilung aller Teilnehmer*innen oder Teilnahmen"]
[null,null,null,null,null,null,null,null,null,null,null,null,null,null,"2.","Altersverteilung aller Teilnehmer*innen oder Teilnahmen"]
[null,null,null,null,null,null,null,null,null,null,null,null,null,null,"3.","Altersverteilung aller Teilnehmer*innen oder Teilnahmen in allen Geschlechtskategorien"]
[null,null,null,null,null,null,null,null,null,null,null,null,null,null,"4.","Geschlechtsverteilung aller Teilnehmer*innen oder Teilnahmen in allen Alterskategorien"]
[null,null,null,null,null,null,null,null,null,null,null,null,null,null,"5.","Vergleich aller Teilnehmer*innen oder Teilnahmen mit dem Vorjahr"]
[]
[null,null,null,null,null,null,null,null,null,null,null,null,null,null,"wenn möglich:"]
[null,null,null,null,null,null,null,null,null,null,null,null,null,null,null,"In den einzelnen Aktivitäten (pro Aktivität ein Diagramm): "]
[]
[null,null,null,null,null,null,null,null,null,null,null,null,null,null,"a.","Altersverteilung der Teilnehmer*innen oder Teilnahmen in allen Geschlechtskategorien"]
[null,null,null,null,null,null,null,null,null,null,null,null,null,null,"b.","Geschlechtsverteilung der Teilnehmer*innen oder Teilnahmen in allen Alterskategorien"]
[]
[]
[]
[]
[null,null,null,null,null,null,null,null,null,null,null,null,null,null,"Teilnehmer*innen"]
[null,null,null,null,null,null,null,null,null,null,null,null,null,null,null,"männlich","weiblich","divers","k.A.","Gesamt"]
[null,null,null,null,null,null,null,null,null,null,null,null,null,null,"0 - 10 Jahre",{"$f":"Statistik!C26","v":0},{"$f":"Statistik!D26","v":0},{"$f":"Statistik!E26","v":0},{"$f":"Statistik!F26","v":0},{"$f":"SUM(P20:S20)","v":0}]
[null,null,null,null,null,null,null,null,null,null,null,null,null,null,"11 - 14 Jahre",{"$f":"Statistik!G26","v":0},{"$f":"Statistik!H26","v":0},{"$f":"Statistik!I26","v":0},{"$f":"Statistik!J26","v":0},{"$f":"SUM(P21:S21)","v":0}]
[null,null,null,null,null,null,null,null,null,null,null,null,null,null,"15 - 24 Jahre",{"$f":"Statistik!K26","v":0},{"$f":"Statistik!L26","v":0},{"$f":"Statistik!M26","v":0},{"$f":"Statistik!N26","v":0},0]
[null,null,null,null,null,null,null,null,null,null,null,null,null,null,"25 - 44 Jahre",{"$f":"Statistik!O26","v":0},{"$f":"Statistik!P26","v":0},{"$f":"Statistik!Q26","v":0},{"$f":"Statistik!R26","v":0},0]
[null,null,null,null,null,null,null,null,null,null,null,null,null,null,"45 - 64 Jahre",{"$f":"Statistik!S26","v":0},{"$f":"Statistik!T26","v":0},{"$f":"Statistik!U26","v":0},{"$f":"Statistik!V26","v":0},0]
[null,null,null,null,null,null,null,null,null,null,null,null,null,null,"über 65 Jahre",{"$f":"Statistik!W26","v":0},{"$f":"Statistik!X26","v":0},{"$f":"Statistik!Y26","v":0},{"$f":"Statistik!Z26","v":0},0]
[null,null,null,null,null,null,null,null,null,null,null,null,null,null,null,null,null,null,{"$f":"\"Förderjahr \"&Statistik!$C$2","v":"Förderjahr 2023"},{"$f":"Statistik!AE26","v":0}]
[null,null,null,null,null,null,null,null,null,null,null,null,null,null,null,null,null,null,{"$f":"\"Förderjahr \" &Statistik!$C$2-1","v":"Förderjahr 2022"},{"$f":"Statistik!AF26","v":0}]
[]
[]
[null,null,null,null,null,null,null,null,null,null,null,null,null,null,"Teilnahmen"]
[null,null,null,null,null,null,null,null,null,null,null,null,null,null,null,"männlich","weiblich","divers","k.A.","Gesamt"]
[null,null,null,null,null,null,null,null,null,null,null,null,null,null,"0 - 10 Jahre",{"$f":"Statistik!C36","v":0},{"$f":"Statistik!D36","v":0},{"$f":"Statistik!E36","v":0},{"$f":"Statistik!F36","v":0},{"$f":"SUM(P32:S32)","v":0}]
[null,null,null,null,null,null,null,null,null,null,null,null,null,null,"11 - 14 Jahre",{"$f":"Statistik!G36","v":0},{"$f":"Statistik!H36","v":0},{"$f":"Statistik!I36","v":0},{"$f":"Statistik!J36","v":0},{"$f":"SUM(P33:S33)","v":0}]
[null,null,null,null,null,null,null,null,null,null,null,null,null,null,"15 - 24 Jahre",{"$f":"Statistik!K36","v":0},{"$f":"Statistik!L36","v":0},{"$f":"Statistik!M36","v":0},{"$f":"Statistik!N36","v":0},0]
[null,null,null,null,null,null,null,null,null,null,null,null,null,null,"25 - 44 Jahre",{"$f":"Statistik!O36","v":0},{"$f":"Statistik!P36","v":0},{"$f":"Statistik!Q36","v":0},{"$f":"Statistik!R36","v":0},0]
[null,null,null,null,null,null,null,null,null,null,null,null,null,null,"45 - 64 Jahre",{"$f":"Statistik!S36","v":0},{"$f":"Statistik!T36","v":0},{"$f":"Statistik!U36","v":0},{"$f":"Statistik!V36","v":0},0]
[null,null,null,null,null,null,null,null,null,null,null,null,null,null,"über 65 Jahre",{"$f":"Statistik!W36","v":0},{"$f":"Statistik!X36","v":0},{"$f":"Statistik!Y36","v":0},{"$f":"Statistik!Z36","v":0},0]
[null,null,null,null,null,null,null,null,null,null,null,null,null,null,null,null,null,null,{"$f":"\"Förderjahr \"&Statistik!$C$2","v":"Förderjahr 2023"},{"$f":"Statistik!AE36","v":0}]
[null,null,null,null,null,null,null,null,null,null,null,null,null,null,null,null,null,null,{"$f":"\"Förderjahr \" &Statistik!$C$2-1","v":"Förderjahr 2022"},{"$f":"Statistik!AF36","v":0}]